[Event "Titled Tuesday Blitz June 27 Late 2023"]
[White "Grinev, Valeriy"]
[Black "szachmistrz2500"]
[WhiteFideId "14117517"]
[WhiteElo "2605"]
[BlackElo "2447"]
[Result "1-0"]
[Round "5"]
[TimeControl "180+2"]
[Date "2023.06.27"]
[WhiteClock "0:00:58"]
[BlackClock "0:00:32"]
[Board "84"]

1. e4 {[%clk 0:02:57]}  c5 {[%clk 0:02:59]} 2. Nc3 {[%clk 0:02:56]}  Nc6 {[%clk 0:02:56]} 3. d3 {[%clk 0:02:55]}  g6 {[%clk 0:02:55]} 4. Be3 {[%clk 0:02:54]}  d6 {[%clk 0:02:49]} 5. d4 {[%clk 0:02:54]}  cxd4 {[%clk 0:02:45]} 6. Bxd4 {[%clk 0:02:53]}  Nxd4 {[%clk 0:02:34]} 7. Qxd4 {[%clk 0:02:54]}  Nf6 {[%clk 0:02:34]} 8. e5 {[%clk 0:02:53]}  dxe5 {[%clk 0:02:34]} 9. Bb5+ {[%clk 0:02:52]}  Bd7 {[%clk 0:02:33]} 10. Qxe5 {[%clk 0:02:50]}  a6 {[%clk 0:02:11]} 11. Bxd7+ {[%clk 0:02:46]}  Qxd7 {[%clk 0:02:09]} 12. Nf3 {[%clk 0:02:46]}  Bg7 {[%clk 0:02:04]} 13. Qe2 {[%clk 0:02:43]}  O-O {[%clk 0:01:59]} 14. O-O {[%clk 0:02:42]}  Rac8 {[%clk 0:01:56]} 15. Rad1 {[%clk 0:02:41]}  Qc7 {[%clk 0:01:57]} 16. Rfe1 {[%clk 0:02:40]}  Rfe8 {[%clk 0:01:56]} 17. h3 {[%clk 0:02:39]}  e5 {[%clk 0:01:54]} 18. Ng5 {[%clk 0:02:36]}  h6 {[%clk 0:01:51]} 19. Nge4 {[%clk 0:02:34]}  Nxe4 {[%clk 0:01:49]} 20. Qxe4 {[%clk 0:02:35]}  f5 {[%clk 0:01:45]} 21. Qd5+ {[%clk 0:02:34]}  Kh7 {[%clk 0:01:45]} 22. Qd7 {[%clk 0:02:27]}  Re7 {[%clk 0:01:45]} 23. Qxc7 {[%clk 0:02:27]}  Rexc7 {[%clk 0:01:44]} 24. f3 {[%clk 0:02:22]}  b5 {[%clk 0:01:43]} 25. a3 {[%clk 0:02:20]}  e4 {[%clk 0:01:38]} 26. fxe4 {[%clk 0:02:16]}  Bxc3 {[%clk 0:01:37]} 27. bxc3 {[%clk 0:02:15]}  fxe4 {[%clk 0:01:36]} 28. Rxe4 {[%clk 0:02:14]}  h5 {[%clk 0:01:34]} 29. Rd6 {[%clk 0:02:14]}  Rxc3 {[%clk 0:01:30]} 30. Re7+ {[%clk 0:02:11]}  Kh6 {[%clk 0:01:29]} 31. Ree6 {[%clk 0:02:06]}  Rg3 {[%clk 0:01:29]} 32. Kh2 {[%clk 0:02:00]}  h4 {[%clk 0:01:29]} 33. Re4 {[%clk 0:01:55]}  Kh5 {[%clk 0:01:08]} 34. Re5+ {[%clk 0:01:28]}  Kh6 {[%clk 0:01:02]} 35. Re4 {[%clk 0:01:26]}  Kh5 {[%clk 0:01:01]} 36. Rd5+ {[%clk 0:01:00]}  g5 {[%clk 0:00:53]} 37. Rd2 {[%clk 0:00:59]}  Rcc3 {[%clk 0:00:44]} 38. Re6 {[%clk 0:00:59]}  Rxa3 {[%clk 0:00:31]} 39. Rdd6 {[%clk 0:00:58]}  g4 {[%clk 0:00:32]} 40. Rd5# {[%clk 0:00:58]} 1-0


[Site "https://www.chess.com"]

[Event "Titled Tuesday Blitz June 27 Late 2023"]
[White "Gubajdullin, Alexei"]
[Black "JERO-8914"]
[WhiteFideId "4141202"]
[WhiteElo "2601"]
[BlackElo "2445"]
[Result "1-0"]
[Round "5"]
[TimeControl "180+2"]
[Date "2023.06.27"]
[WhiteClock "0:01:36"]
[BlackClock "0:00:00"]
[Board "86"]

1. Nf3 {[%clk 0:03:00]}  Nf6 {[%clk 0:02:57]} 2. d4 {[%clk 0:02:59]}  d5 {[%clk 0:02:55]} 3. Bf4 {[%clk 0:02:59]}  c5 {[%clk 0:02:53]} 4. e3 {[%clk 0:02:59]}  g6 {[%clk 0:02:52]} 5. Nbd2 {[%clk 0:02:58]}  Nc6 {[%clk 0:02:51]} 6. c3 {[%clk 0:02:58]}  Bg7 {[%clk 0:02:51]} 7. Be2 {[%clk 0:02:58]}  O-O {[%clk 0:02:51]} 8. O-O {[%clk 0:02:59]}  Nd7 {[%clk 0:02:51]} 9. Qb3 {[%clk 0:02:48]}  e5 {[%clk 0:02:38]} 10. dxe5 {[%clk 0:02:48]}  Ndxe5 {[%clk 0:02:36]} 11. Nxe5 {[%clk 0:02:48]}  Nxe5 {[%clk 0:02:36]} 12. Nf3 {[%clk 0:02:46]}  c4 {[%clk 0:02:34]} 13. Qa3 {[%clk 0:02:42]}  Nxf3+ {[%clk 0:02:17]} 14. Bxf3 {[%clk 0:02:41]}  Be6 {[%clk 0:02:18]} 15. Rfd1 {[%clk 0:02:40]}  Qd7 {[%clk 0:01:51]} 16. Rd2 {[%clk 0:02:40]}  Rfd8 {[%clk 0:01:49]} 17. Rad1 {[%clk 0:02:27]}  Bf8 {[%clk 0:01:33]} 18. Qa5 {[%clk 0:02:26]}  b6 {[%clk 0:01:25]} 19. Qa6 {[%clk 0:02:26]}  Qc6 {[%clk 0:01:20]} 20. a4 {[%clk 0:02:25]}  Rd7 {[%clk 0:00:56]} 21. Qb5 {[%clk 0:02:20]}  Qxb5 {[%clk 0:00:46]} 22. axb5 {[%clk 0:02:20]}  a6 {[%clk 0:00:25]} 23. Bxd5 {[%clk 0:02:03]}  Rxd5 {[%clk 0:00:20]} 24. Rxd5 {[%clk 0:02:02]}  Bxd5 {[%clk 0:00:21]} 25. Rxd5 {[%clk 0:02:02]}  axb5 {[%clk 0:00:22]} 26. g4 {[%clk 0:02:02]}  b4 {[%clk 0:00:20]} 27. cxb4 {[%clk 0:01:57]}  Ra1+ {[%clk 0:00:19]} 28. Kg2 {[%clk 0:01:57]}  Rb1 {[%clk 0:00:19]} 29. Be5 {[%clk 0:01:56]}  f6 {[%clk 0:00:14]} 30. Bc3 {[%clk 0:01:51]}  Bxb4 {[%clk 0:00:08]} 31. Bxb4 {[%clk 0:01:49]}  Rxb2 {[%clk 0:00:09]} 32. Bc3 {[%clk 0:01:43]}  Rb3 {[%clk 0:00:08]} 33. Bxf6 {[%clk 0:01:44]}  b5 {[%clk 0:00:08]} 34. Rc5 {[%clk 0:01:43]}  Kf7 {[%clk 0:00:06]} 35. Bd4 {[%clk 0:01:40]}  Ke6 {[%clk 0:00:06]} 36. Kg3 {[%clk 0:01:38]}  Kd6 {[%clk 0:00:05]} 37. f4 {[%clk 0:01:38]}  Rb1 {[%clk 0:00:04]} 38. f5 {[%clk 0:01:37]}  gxf5 {[%clk 0:00:04]} 39. gxf5 {[%clk 0:01:37]}  Ke7 {[%clk 0:00:04]} 40. f6+ {[%clk 0:01:37]}  Kf7 {[%clk 0:00:04]} 41. Rc7+ {[%clk 0:01:37]}  Kf8 {[%clk 0:00:00]} 42. Bc5+ {[%clk 0:01:36]} 1-0


[Site "https://www.chess.com"]

[Event "Titled Tuesday Blitz June 27 Late 2023"]
[White "liwadas82"]
[Black "Sun, Rick"]
[BlackFideId "30909481"]
[WhiteElo "2445"]
[BlackElo "2601"]
[Result "0-1"]
[Round "5"]
[TimeControl "180+2"]
[Date "2023.06.27"]
[WhiteClock "0:00:04"]
[BlackClock "0:00:13"]
[Board "87"]

1. e4 {[%clk 0:02:53]}  d6 {[%clk 0:03:00]} 2. d4 {[%clk 0:02:52]}  Nf6 {[%clk 0:03:01]} 3. Nc3 {[%clk 0:02:52]}  Nbd7 {[%clk 0:03:01]} 4. Nf3 {[%clk 0:02:51]}  e5 {[%clk 0:03:02]} 5. Bc4 {[%clk 0:02:49]}  Be7 {[%clk 0:03:02]} 6. O-O {[%clk 0:02:49]}  c6 {[%clk 0:03:02]} 7. a4 {[%clk 0:02:48]}  O-O {[%clk 0:03:02]} 8. Re1 {[%clk 0:02:46]}  Qc7 {[%clk 0:03:02]} 9. b3 {[%clk 0:02:36]}  h6 {[%clk 0:03:01]} 10. h3 {[%clk 0:02:35]}  Re8 {[%clk 0:02:58]} 11. Bd3 {[%clk 0:02:33]}  Nf8 {[%clk 0:02:53]} 12. Bb2 {[%clk 0:02:30]}  Ng6 {[%clk 0:02:53]} 13. Ne2 {[%clk 0:02:29]}  Bf8 {[%clk 0:02:24]} 14. Ng3 {[%clk 0:02:29]}  Nf4 {[%clk 0:02:10]} 15. Bf1 {[%clk 0:02:28]}  Bd7 {[%clk 0:01:46]} 16. Qd2 {[%clk 0:02:28]}  g5 {[%clk 0:01:17]} 17. Rad1 {[%clk 0:02:17]}  Rad8 {[%clk 0:01:16]} 18. Nf5 {[%clk 0:01:55]}  Bxf5 {[%clk 0:01:12]} 19. exf5 {[%clk 0:01:56]}  e4 {[%clk 0:01:06]} 20. Nh2 {[%clk 0:01:40]}  d5 {[%clk 0:01:06]} 21. Ng4 {[%clk 0:01:26]}  Bg7 {[%clk 0:00:26]} 22. Bc1 {[%clk 0:01:19]}  N4h5 {[%clk 0:00:20]} 23. Ne5 {[%clk 0:00:57]}  Nd7 {[%clk 0:00:17]} 24. Nxd7 {[%clk 0:00:54]}  Qxd7 {[%clk 0:00:18]} 25. Be2 {[%clk 0:00:53]}  Nf4 {[%clk 0:00:16]} 26. Bg4 {[%clk 0:00:24]}  h5 {[%clk 0:00:16]} 27. f6 {[%clk 0:00:22]}  hxg4 {[%clk 0:00:14]} 28. fxg7 {[%clk 0:00:23]}  gxh3 {[%clk 0:00:14]} 29. g3 {[%clk 0:00:23]}  Qg4 {[%clk 0:00:11]} 30. Qe3 {[%clk 0:00:16]}  Ne6 {[%clk 0:00:09]} 31. Kh2 {[%clk 0:00:14]}  Kxg7 {[%clk 0:00:09]} 32. Rf1 {[%clk 0:00:14]}  f5 {[%clk 0:00:07]} 33. f3 {[%clk 0:00:12]}  exf3 {[%clk 0:00:07]} 34. Rxf3 {[%clk 0:00:11]}  Kg6 {[%clk 0:00:05]} 35. Qf2 {[%clk 0:00:09]}  Ng7 {[%clk 0:00:04]} 36. Rf1 {[%clk 0:00:09]}  Re4 {[%clk 0:00:05]} 37. c3 {[%clk 0:00:09]}  Rde8 {[%clk 0:00:05]} 38. Re3 {[%clk 0:00:09]}  Rxe3 {[%clk 0:00:05]} 39. Bxe3 {[%clk 0:00:10]}  f4 {[%clk 0:00:05]} 40. gxf4 {[%clk 0:00:09]}  Rxe3 {[%clk 0:00:05]} 41. Rg1 {[%clk 0:00:08]}  Re2 {[%clk 0:00:03]} 42. Rxg4 {[%clk 0:00:06]}  Rxf2+ {[%clk 0:00:03]} 43. Kxh3 {[%clk 0:00:06]}  Rxf4 {[%clk 0:00:04]} 44. Rxf4 {[%clk 0:00:06]}  gxf4 {[%clk 0:00:04]} 45. Kg4 {[%clk 0:00:07]}  Ne6 {[%clk 0:00:05]} 46. c4 {[%clk 0:00:07]}  Kf6 {[%clk 0:00:05]} 47. cxd5 {[%clk 0:00:07]}  cxd5 {[%clk 0:00:06]} 48. b4 {[%clk 0:00:07]}  b6 {[%clk 0:00:06]} 49. a5 {[%clk 0:00:07]}  bxa5 {[%clk 0:00:06]} 50. bxa5 {[%clk 0:00:08]}  a6 {[%clk 0:00:07]} 51. Kf3 {[%clk 0:00:08]}  Kf5 {[%clk 0:00:08]} 52. Ke2 {[%clk 0:00:08]}  Ke4 {[%clk 0:00:09]} 53. Kf2 {[%clk 0:00:08]}  Nxd4 {[%clk 0:00:10]} 54. Kf1 {[%clk 0:00:08]}  Nc6 {[%clk 0:00:11]} 55. Kf2 {[%clk 0:00:09]}  Nxa5 {[%clk 0:00:12]} 56. Ke2 {[%clk 0:00:09]}  Nc4 {[%clk 0:00:12]} 57. Kf2 {[%clk 0:00:04]}  f3 {[%clk 0:00:13]} 0-1


[Site "https://www.chess.com"]

[Event "Titled Tuesday Blitz June 27 Late 2023"]
[White "Karthik, Advaith"]
[Black "MKlose11"]
[WhiteFideId "30946050"]
[WhiteElo "2443"]
[BlackElo "2599"]
[Result "1-0"]
[Round "5"]
[TimeControl "180+2"]
[Date "2023.06.27"]
[WhiteClock "0:00:21"]
[BlackClock "0:00:18"]
[Board "88"]

1. d4 {[%clk 0:02:39]}  Nf6 {[%clk 0:02:59]} 2. c4 {[%clk 0:02:38]}  c5 {[%clk 0:02:56]} 3. d5 {[%clk 0:02:35]}  b5 {[%clk 0:02:56]} 4. cxb5 {[%clk 0:02:36]}  a6 {[%clk 0:02:56]} 5. bxa6 {[%clk 0:02:37]}  Bxa6 {[%clk 0:02:55]} 6. Nc3 {[%clk 0:02:37]}  g6 {[%clk 0:02:55]} 7. g3 {[%clk 0:02:36]}  Bg7 {[%clk 0:02:55]} 8. Bg2 {[%clk 0:02:37]}  d6 {[%clk 0:02:55]} 9. Nf3 {[%clk 0:02:37]}  O-O {[%clk 0:02:56]} 10. O-O {[%clk 0:02:38]}  Nbd7 {[%clk 0:02:56]} 11. h3 {[%clk 0:02:38]}  Ne8 {[%clk 0:02:57]} 12. Re1 {[%clk 0:02:38]}  Nc7 {[%clk 0:02:57]} 13. e4 {[%clk 0:02:38]}  Nb5 {[%clk 0:02:56]} 14. Bd2 {[%clk 0:02:38]}  Qb6 {[%clk 0:02:55]} 15. Nxb5 {[%clk 0:02:37]}  Bxb5 {[%clk 0:02:51]} 16. Bc3 {[%clk 0:02:37]}  f6 {[%clk 0:02:14]} 17. Nd2 {[%clk 0:02:14]}  Qa6 {[%clk 0:02:08]} 18. f4 {[%clk 0:01:55]}  Rab8 {[%clk 0:02:01]} 19. Kh2 {[%clk 0:01:46]}  Nb6 {[%clk 0:01:56]} 20. b3 {[%clk 0:01:29]}  Nd7 {[%clk 0:01:46]} 21. Nf3 {[%clk 0:01:18]}  Qa3 {[%clk 0:01:42]} 22. Qc1 {[%clk 0:01:14]}  Qxc1 {[%clk 0:01:39]} 23. Raxc1 {[%clk 0:01:15]}  Rb7 {[%clk 0:01:25]} 24. e5 {[%clk 0:01:09]}  fxe5 {[%clk 0:01:24]} 25. fxe5 {[%clk 0:01:10]}  Nb6 {[%clk 0:01:19]} 26. exd6 {[%clk 0:01:05]}  Bxc3 {[%clk 0:00:58]} 27. Rxe7 {[%clk 0:00:38]}  Rxe7 {[%clk 0:00:32]} 28. dxe7 {[%clk 0:00:37]}  Re8 {[%clk 0:00:32]} 29. Rxc3 {[%clk 0:00:30]}  Rxe7 {[%clk 0:00:29]} 30. Rxc5 {[%clk 0:00:30]}  Bd7 {[%clk 0:00:22]} 31. a4 {[%clk 0:00:22]}  Re2 {[%clk 0:00:18]} 32. a5 {[%clk 0:00:21]}  Nc8 {[%clk 0:00:19]} 33. Nd4 {[%clk 0:00:19]}  Ra2 {[%clk 0:00:17]} 34. Nc6 {[%clk 0:00:17]}  Nd6 {[%clk 0:00:15]} 35. Ne5 {[%clk 0:00:15]}  Bf5 {[%clk 0:00:15]} 36. Kg1 {[%clk 0:00:12]}  Ra1+ {[%clk 0:00:15]} 37. Kf2 {[%clk 0:00:11]}  Ra2+ {[%clk 0:00:15]} 38. Kf1 {[%clk 0:00:11]}  Ra1+ {[%clk 0:00:15]} 39. Kf2 {[%clk 0:00:10]}  Ra2+ {[%clk 0:00:15]} 40. Kg1 {[%clk 0:00:10]}  Ra1+ {[%clk 0:00:14]} 41. Kh2 {[%clk 0:00:10]}  Ra2 {[%clk 0:00:14]} 42. Rc3 {[%clk 0:00:08]}  Be4 {[%clk 0:00:12]} 43. Nf3 {[%clk 0:00:08]}  Bxd5 {[%clk 0:00:12]} 44. b4 {[%clk 0:00:08]}  Ne4 {[%clk 0:00:10]} 45. Rd3 {[%clk 0:00:07]}  Bc6 {[%clk 0:00:07]} 46. h4 {[%clk 0:00:06]}  Nf6 {[%clk 0:00:04]} 47. Kh3 {[%clk 0:00:04]}  h5 {[%clk 0:00:04]} 48. Ne1 {[%clk 0:00:03]}  Bd7+ {[%clk 0:00:03]} 49. Rxd7 {[%clk 0:00:03]}  Nxd7 {[%clk 0:00:03]} 50. Bd5+ {[%clk 0:00:03]}  Kf8 {[%clk 0:00:03]} 51. Bxa2 {[%clk 0:00:04]}  Ke8 {[%clk 0:00:04]} 52. Kg2 {[%clk 0:00:05]}  Ke7 {[%clk 0:00:04]} 53. b5 {[%clk 0:00:06]}  Kd6 {[%clk 0:00:05]} 54. b6 {[%clk 0:00:06]}  Kc6 {[%clk 0:00:04]} 55. Be6 {[%clk 0:00:07]}  Nb8 {[%clk 0:00:04]} 56. Bf7 {[%clk 0:00:08]}  g5 {[%clk 0:00:04]} 57. Bxh5 {[%clk 0:00:08]}  Kb5 {[%clk 0:00:05]} 58. hxg5 {[%clk 0:00:08]}  Kxa5 {[%clk 0:00:06]} 59. g6 {[%clk 0:00:09]}  Ka6 {[%clk 0:00:07]} 60. g7 {[%clk 0:00:10]}  Kxb6 {[%clk 0:00:08]} 61. g8=Q {[%clk 0:00:10]}  Nc6 {[%clk 0:00:09]} 62. Qe6 {[%clk 0:00:10]}  Kc5 {[%clk 0:00:10]} 63. Qxc6+ {[%clk 0:00:11]}  Kxc6 {[%clk 0:00:10]} 64. Kf3 {[%clk 0:00:11]}  Kd5 {[%clk 0:00:11]} 65. Kf4 {[%clk 0:00:12]}  Ke6 {[%clk 0:00:11]} 66. Nf3 {[%clk 0:00:13]}  Kf6 {[%clk 0:00:12]} 67. g4 {[%clk 0:00:14]}  Kg7 {[%clk 0:00:12]} 68. g5 {[%clk 0:00:14]}  Kh7 {[%clk 0:00:13]} 69. Kf5 {[%clk 0:00:15]}  Kg7 {[%clk 0:00:14]} 70. g6 {[%clk 0:00:16]}  Kh6 {[%clk 0:00:13]} 71. Kf6 {[%clk 0:00:17]}  Kxh5 {[%clk 0:00:13]} 72. g7 {[%clk 0:00:18]}  Kg4 {[%clk 0:00:11]} 73. g8=Q+ {[%clk 0:00:18]}  Kxf3 {[%clk 0:00:12]} 74. Qg5 {[%clk 0:00:18]}  Ke4 {[%clk 0:00:13]} 75. Qf5+ {[%clk 0:00:19]}  Ke3 {[%clk 0:00:13]} 76. Kg5 {[%clk 0:00:20]}  Kd4 {[%clk 0:00:14]} 77. Kf4 {[%clk 0:00:20]}  Kc3 {[%clk 0:00:15]} 78. Qe4 {[%clk 0:00:20]}  Kd2 {[%clk 0:00:16]} 79. Qf3 {[%clk 0:00:20]}  Kc1 {[%clk 0:00:17]} 80. Qg2 {[%clk 0:00:20]}  Kd1 {[%clk 0:00:17]} 81. Ke3 {[%clk 0:00:21]}  Ke1 {[%clk 0:00:18]} 82. Qg1# {[%clk 0:00:21]} 1-0


[Site "https://www.chess.com"]

[Event "Titled Tuesday Blitz June 27 Late 2023"]
[White "Sukandar, Irine Kharisma"]
[Black "lagarto93"]
[WhiteFideId "7101937"]
[WhiteElo "2434"]
[BlackElo "2597"]
[Result "1-0"]
[Round "5"]
[TimeControl "180+2"]
[Date "2023.06.27"]
[WhiteClock "0:00:39"]
[BlackClock "0:01:29"]
[Board "90"]

1. e4 {[%clk 0:02:58]}  e6 {[%clk 0:02:59]} 2. d4 {[%clk 0:02:55]}  d5 {[%clk 0:02:59]} 3. exd5 {[%clk 0:02:55]}  exd5 {[%clk 0:02:59]} 4. Nc3 {[%clk 0:02:56]}  Nf6 {[%clk 0:02:59]} 5. h3 {[%clk 0:02:54]}  Be7 {[%clk 0:02:58]} 6. Bf4 {[%clk 0:02:48]}  O-O {[%clk 0:02:55]} 7. Bd3 {[%clk 0:02:47]}  h6 {[%clk 0:02:51]} 8. Nf3 {[%clk 0:02:46]}  c5 {[%clk 0:02:51]} 9. dxc5 {[%clk 0:02:41]}  Bxc5 {[%clk 0:02:50]} 10. O-O {[%clk 0:02:42]}  Nc6 {[%clk 0:02:51]} 11. a3 {[%clk 0:02:40]}  Be6 {[%clk 0:02:49]} 12. b4 {[%clk 0:02:39]}  Bb6 {[%clk 0:02:49]} 13. Qd2 {[%clk 0:02:29]}  d4 {[%clk 0:02:27]} 14. Ne4 {[%clk 0:02:24]}  Nxe4 {[%clk 0:02:26]} 15. Bxe4 {[%clk 0:02:23]}  Bd5 {[%clk 0:02:27]} 16. Rfe1 {[%clk 0:02:16]}  Bxe4 {[%clk 0:02:21]} 17. Rxe4 {[%clk 0:02:15]}  Qd5 {[%clk 0:02:21]} 18. Rae1 {[%clk 0:02:14]}  Rad8 {[%clk 0:02:20]} 19. Bxh6 {[%clk 0:02:06]}  f5 {[%clk 0:02:06]} 20. Qg5 {[%clk 0:02:05]}  Rd7 {[%clk 0:01:46]} 21. Re7 {[%clk 0:01:57]}  Rf7 {[%clk 0:01:43]} 22. Re8+ {[%clk 0:01:33]}  Rf8 {[%clk 0:01:43]} 23. Rxf8+ {[%clk 0:01:30]}  Kxf8 {[%clk 0:01:42]} 24. Qf6+ {[%clk 0:01:29]}  Qf7 {[%clk 0:01:34]} 25. Bxg7+ {[%clk 0:01:27]}  Kg8 {[%clk 0:01:34]} 26. Qh6 {[%clk 0:00:40]}  Qxg7 {[%clk 0:01:30]} 27. Re8+ {[%clk 0:00:39]}  Kf7 {[%clk 0:01:29]} 28. Qe6# {[%clk 0:00:39]} 1-0


[Site "https://www.chess.com"]

[Event "Titled Tuesday Blitz June 27 Late 2023"]
[White "Wachinger, Nikolas"]
[Black "Ai, Evan"]
[WhiteFideId "12962791"]
[BlackFideId "2094770"]
[WhiteElo "2590"]
[BlackElo "2426"]
[Result "0-1"]
[Round "5"]
[TimeControl "180+2"]
[Date "2023.06.27"]
[WhiteClock "0:00:01"]
[BlackClock "0:00:10"]
[Board "92"]

1. d4 {[%clk 0:03:00]}  Nf6 {[%clk 0:02:58]} 2. Nf3 {[%clk 0:03:01]}  e6 {[%clk 0:02:58]} 3. Bf4 {[%clk 0:03:01]}  d5 {[%clk 0:02:58]} 4. Nbd2 {[%clk 0:03:00]}  c5 {[%clk 0:02:58]} 5. e3 {[%clk 0:02:58]}  Nc6 {[%clk 0:02:58]} 6. c3 {[%clk 0:02:49]}  Nh5 {[%clk 0:02:58]} 7. Bg5 {[%clk 0:02:33]}  f6 {[%clk 0:02:57]} 8. Bh4 {[%clk 0:02:31]}  cxd4 {[%clk 0:02:54]} 9. cxd4 {[%clk 0:02:16]}  g6 {[%clk 0:02:42]} 10. Bd3 {[%clk 0:02:06]}  Be7 {[%clk 0:02:31]} 11. Rc1 {[%clk 0:02:02]}  O-O {[%clk 0:02:23]} 12. a3 {[%clk 0:02:01]}  e5 {[%clk 0:02:06]} 13. Qb3 {[%clk 0:01:30]}  exd4 {[%clk 0:01:53]} 14. Nxd4 {[%clk 0:01:24]}  Nxd4 {[%clk 0:01:48]} 15. exd4 {[%clk 0:01:25]}  Nf4 {[%clk 0:01:48]} 16. O-O {[%clk 0:01:14]}  Nxd3 {[%clk 0:01:44]} 17. Qxd3 {[%clk 0:01:15]}  Bf5 {[%clk 0:01:41]} 18. Qb3 {[%clk 0:01:15]}  Qd7 {[%clk 0:01:38]} 19. Nb1 {[%clk 0:00:51]}  Rac8 {[%clk 0:01:37]} 20. Nc3 {[%clk 0:00:48]}  Be6 {[%clk 0:01:23]} 21. Rfe1 {[%clk 0:00:48]}  Rc6 {[%clk 0:01:23]} 22. Re2 {[%clk 0:00:44]}  Rfc8 {[%clk 0:01:23]} 23. Rce1 {[%clk 0:00:43]}  g5 {[%clk 0:01:18]} 24. Bg3 {[%clk 0:00:40]}  Bf8 {[%clk 0:01:18]} 25. h4 {[%clk 0:00:36]}  h6 {[%clk 0:01:16]} 26. hxg5 {[%clk 0:00:20]}  hxg5 {[%clk 0:01:17]} 27. f4 {[%clk 0:00:21]}  Rb6 {[%clk 0:01:10]} 28. Qc2 {[%clk 0:00:20]}  Bf5 {[%clk 0:01:07]} 29. Qd2 {[%clk 0:00:20]}  g4 {[%clk 0:01:00]} 30. Bh4 {[%clk 0:00:17]}  Rcc6 {[%clk 0:00:53]} 31. Re3 {[%clk 0:00:16]}  Re6 {[%clk 0:00:53]} 32. Qe2 {[%clk 0:00:14]}  Rxe3 {[%clk 0:00:52]} 33. Qxe3 {[%clk 0:00:15]}  Re6 {[%clk 0:00:52]} 34. Qd2 {[%clk 0:00:14]}  Kf7 {[%clk 0:00:27]} 35. Kf2 {[%clk 0:00:14]}  Bh6 {[%clk 0:00:25]} 36. Rxe6 {[%clk 0:00:13]}  Qxe6 {[%clk 0:00:26]} 37. Qe3 {[%clk 0:00:11]}  a6 {[%clk 0:00:23]} 38. Qxe6+ {[%clk 0:00:09]}  Kxe6 {[%clk 0:00:24]} 39. Ke3 {[%clk 0:00:10]}  Kd6 {[%clk 0:00:22]} 40. Bxf6 {[%clk 0:00:10]}  Ke6 {[%clk 0:00:23]} 41. Be5 {[%clk 0:00:09]}  Bf8 {[%clk 0:00:22]} 42. g3 {[%clk 0:00:09]}  b5 {[%clk 0:00:23]} 43. Nd1 {[%clk 0:00:08]}  a5 {[%clk 0:00:22]} 44. Kd2 {[%clk 0:00:08]}  b4 {[%clk 0:00:22]} 45. axb4 {[%clk 0:00:06]}  Bxb4+ {[%clk 0:00:23]} 46. Ke2 {[%clk 0:00:06]}  Be4 {[%clk 0:00:23]} 47. Ne3 {[%clk 0:00:05]}  Bf3+ {[%clk 0:00:22]} 48. Kd3 {[%clk 0:00:06]}  Be4+ {[%clk 0:00:23]} 49. Ke2 {[%clk 0:00:07]}  Bf3+ {[%clk 0:00:23]} 50. Kf2 {[%clk 0:00:07]}  Bd2 {[%clk 0:00:19]} 51. Nf1 {[%clk 0:00:06]}  Bc1 {[%clk 0:00:18]} 52. Nh2 {[%clk 0:00:06]}  Bxb2 {[%clk 0:00:13]} 53. Nxf3 {[%clk 0:00:03]}  gxf3 {[%clk 0:00:14]} 54. Kxf3 {[%clk 0:00:03]}  a4 {[%clk 0:00:14]} 55. g4 {[%clk 0:00:03]}  a3 {[%clk 0:00:15]} 56. f5+ {[%clk 0:00:04]}  Ke7 {[%clk 0:00:13]} 57. g5 {[%clk 0:00:04]}  a2 {[%clk 0:00:14]} 58. g6 {[%clk 0:00:05]}  a1=Q {[%clk 0:00:14]} 59. f6+ {[%clk 0:00:05]}  Ke6 {[%clk 0:00:13]} 60. f7 {[%clk 0:00:06]}  Qf1+ {[%clk 0:00:13]} 61. Kg4 {[%clk 0:00:06]}  Qf5+ {[%clk 0:00:14]} 62. Kh4 {[%clk 0:00:06]}  Ba3 {[%clk 0:00:11]} 63. Bg7 {[%clk 0:00:01]}  Be7+ {[%clk 0:00:10]} 0-1


[Site "https://www.chess.com"]

[Event "Titled Tuesday Blitz June 27 Late 2023"]
[White "Pinto, Daniel"]
[Black "Bitoon, Richard"]
[WhiteFideId "3303144"]
[BlackFideId "5201110"]
[WhiteElo "2418"]
[BlackElo "2582"]
[Result "1/2-1/2"]
[Round "5"]
[TimeControl "180+2"]
[Date "2023.06.27"]
[WhiteClock "0:00:05"]
[BlackClock "0:01:49"]
[Board "94"]

1. e4 {[%clk 0:02:55]}  e5 {[%clk 0:03:00]} 2. Nf3 {[%clk 0:02:55]}  Nc6 {[%clk 0:03:00]} 3. Bb5 {[%clk 0:02:55]}  a6 {[%clk 0:03:01]} 4. Ba4 {[%clk 0:02:54]}  Nf6 {[%clk 0:03:01]} 5. O-O {[%clk 0:02:53]}  b5 {[%clk 0:03:02]} 6. Bb3 {[%clk 0:02:53]}  Bb7 {[%clk 0:03:03]} 7. d3 {[%clk 0:02:52]}  Bc5 {[%clk 0:03:03]} 8. Nc3 {[%clk 0:02:47]}  h6 {[%clk 0:03:03]} 9. Nd5 {[%clk 0:02:44]}  d6 {[%clk 0:03:03]} 10. Nxf6+ {[%clk 0:02:33]}  Qxf6 {[%clk 0:03:03]} 11. Bd5 {[%clk 0:02:33]}  Rb8 {[%clk 0:03:02]} 12. c3 {[%clk 0:02:33]}  Ne7 {[%clk 0:03:01]} 13. Bxb7 {[%clk 0:02:32]}  Rxb7 {[%clk 0:03:02]} 14. d4 {[%clk 0:02:32]}  Bb6 {[%clk 0:03:02]} 15. a4 {[%clk 0:02:31]}  g5 {[%clk 0:02:59]} 16. axb5 {[%clk 0:02:29]}  axb5 {[%clk 0:02:59]} 17. Ra8+ {[%clk 0:02:26]}  Kd7 {[%clk 0:02:59]} 18. dxe5 {[%clk 0:02:16]}  Qg7 {[%clk 0:03:00]} 19. Rxh8 {[%clk 0:02:09]}  Qxh8 {[%clk 0:03:00]} 20. exd6 {[%clk 0:02:09]}  cxd6 {[%clk 0:02:58]} 21. Qd3 {[%clk 0:02:09]}  g4 {[%clk 0:02:57]} 22. Nd4 {[%clk 0:02:07]}  Qe5 {[%clk 0:02:51]} 23. Qxb5+ {[%clk 0:01:53]}  Qxb5 {[%clk 0:02:49]} 24. Nxb5 {[%clk 0:01:54]}  h5 {[%clk 0:02:49]} 25. Rd1 {[%clk 0:00:37]}  Bxf2+ {[%clk 0:02:48]} 26. Kxf2 {[%clk 0:00:38]}  Rxb5 {[%clk 0:02:49]} 27. b4 {[%clk 0:00:39]}  Nc6 {[%clk 0:02:49]} 28. Bf4 {[%clk 0:00:38]}  Ne5 {[%clk 0:02:48]} 29. Rd5 {[%clk 0:00:33]}  Rxd5 {[%clk 0:02:48]} 30. exd5 {[%clk 0:00:34]}  Nc4 {[%clk 0:02:38]} 31. Ke2 {[%clk 0:00:32]}  Nb6 {[%clk 0:02:38]} 32. Kd3 {[%clk 0:00:31]}  Nxd5 {[%clk 0:02:38]} 33. Bd2 {[%clk 0:00:31]}  f5 {[%clk 0:02:21]} 34. c4 {[%clk 0:00:31]}  Nf6 {[%clk 0:02:22]} 35. Kd4 {[%clk 0:00:28]}  Ne4 {[%clk 0:02:21]} 36. Bf4 {[%clk 0:00:28]}  h4 {[%clk 0:02:20]} 37. c5 {[%clk 0:00:20]}  dxc5+ {[%clk 0:02:21]} 38. bxc5 {[%clk 0:00:21]}  h3 {[%clk 0:01:53]} 39. gxh3 {[%clk 0:00:21]}  gxh3 {[%clk 0:01:54]} 40. Ke5 {[%clk 0:00:17]}  Nxc5 {[%clk 0:01:53]} 41. Kxf5 {[%clk 0:00:18]}  Nd3 {[%clk 0:01:53]} 42. Bg3 {[%clk 0:00:16]}  Ke7 {[%clk 0:01:51]} 43. Kg4 {[%clk 0:00:17]}  Kf6 {[%clk 0:01:51]} 44. Kxh3 {[%clk 0:00:17]}  Kg5 {[%clk 0:01:52]} 45. Kg2 {[%clk 0:00:16]}  Nb4 {[%clk 0:01:51]} 46. Kf3 {[%clk 0:00:13]}  Nd5 {[%clk 0:01:51]} 47. Bd6 {[%clk 0:00:13]}  Kh4 {[%clk 0:01:51]} 48. Kg2 {[%clk 0:00:12]}  Kg4 {[%clk 0:01:51]} 49. h3+ {[%clk 0:00:12]}  Kh5 {[%clk 0:01:51]} 50. Kg3 {[%clk 0:00:10]}  Ne3 {[%clk 0:01:52]} 51. Kf3 {[%clk 0:00:10]}  Nf5 {[%clk 0:01:52]} 52. Bg3 {[%clk 0:00:05]}  Nd4+ {[%clk 0:01:52]} 53. Ke4 {[%clk 0:00:05]}  Ne6 {[%clk 0:01:52]} 54. Bf4 {[%clk 0:00:05]}  Kh4 {[%clk 0:01:51]} 55. Be5 {[%clk 0:00:05]}  Kxh3 {[%clk 0:01:49]} 1/2-1/2


[Site "https://www.chess.com"]